[Event "WYCC 2018 O14"]
[Site "Halkidiki"]
[Date "2018.10.24"]
[Round "6"]
[White "Fecker, Noah"]
[Black "Suleymanli, Aydin"]
[Result "1/2-1/2"]
[ECO "B17"]
[WhiteElo "2184"]
[BlackElo "2313"]
[Annotator "NA"]
[PlyCount "75"]
[EventDate "2018.10.20"]
[EventType "swiss"]
[EventCountry "GRE"]
[SourceTitle "playchess.com"]
[Source "ChessBase"]
[SourceQuality "1"]
[TimeControl "40/5400+30:1800+30"]

1. e4 {[%emt 0:00:00]} c6 {[%emt 0:00:00]} 2. d4 {[%emt 0:00:00]} d5 {[%emt 0:00:00]} 3. Nc3 {[%emt 0:00:00]} dxe4 {[%emt 0:00:00]} 4. Nxe4 {[%emt 0:00:00]} Nd7 {[%emt 0:00:00]} 5. Ng5 {[%emt 0:00:56]} Ngf6 {[%emt 0:00:00]} 6. Bd3 {[%emt 0:00:16]} e6 {[%emt 0:00:03]} 7. N1f3 {[%emt 0:00:53]} Bd6 {[%emt 0:00:10]} 8. Qe2 {[%emt 0:00:12]} h6 {[%emt 0:01:00]} 9. Ne4 {[%emt 0:00:05]} Nxe4 {[%emt 0:00:03]} 10. Qxe4 {[%emt 0:00:06]} Qc7 {[%emt 0:00:07]} 11. O-O {[%emt 0:02:37]} b6 {[%emt 0:00:37]} 12. Qg4 {[%emt 0:00:40] B17: Caro-Kann: Modern Line (4...Nd7)} Kf8 {[%emt 0:00:07]} 13. Bd2 {[%emt 0:01:17]} (13. Re1 c5 14. Qh4 Bb7 15. Be4 Be7 16. Qh3 Bxe4 17. Rxe4 Rd8 18. c3 Qb7 19. Re2 Kg8 {½-½ (75) Duda,J (2707)-Ivanchuk,V (2728) Tbilisi 2017}) 13... Bb7 {[%emt 0:01:54] LiveBook: 8 Games} 14. b4 {[%emt 0:04:38]} Rc8 $146 {[%emt 0:10:00]} ({Predecessor:} 14... Nf6 15. Qh4 Nd5 16. Rab1 Nf4 17. Bc4 Kg8 18. Rfe1 Rd8 19. Bxf4 Bxf4 {½-½ (55) Milliet,S (2387)-Godard,M (2363) Belfort 2012}) 15. Rab1 {[%emt 0:14:46]} Ba8 {[%emt 0:16:51]} 16. Rfe1 {[%emt 0:17:14]} c5 {[%emt 0:21:53]} 17. dxc5 {[%emt 0:17:30]} bxc5 {[%emt 0:00:37]} 18. bxc5 {[%emt 0:05:01]} Nxc5 {[%emt 0:00:36]} 19. Nd4 {[%emt 0:01:28]} Be7 {[%emt 0:13:04]} 20. Bf4 {[%emt 0:09:06]} Qd8 {[%emt 0:01:46]} 21. Be5 {[%emt 0:03:15]} Bf6 {[%emt 0:00:11]} 22. Nf3 {[%emt 0:01:51]} Nxd3 {[%emt 0:07:33]} 23. cxd3 {[%emt 0:03:48]} g6 {[%emt 0:02:37]} 24. Bxf6 {[%emt 0:03:49]} Qxf6 {[%emt 0:00:06]} 25. Ne5 {[%emt 0:00:08]} Kg7 {[%emt 0:07:40]} 26. Nd7 {[%emt 0:03:00]} Qc3 {[%emt 0:05:54]} 27. Qf4 {[%emt 0:02:16]} g5 $11 {[%emt 0:02:08]} 28. Qe3 {[%emt 0:00:40]} Rhd8 {[%emt 0:05:25]} 29. Rec1 {[%emt 0:01:11]} Qa5 {[%emt 0:02:57]} 30. Rxc8 {[%emt 0:01:05]} Rxc8 {[%emt 0:00:28]} 31. Qd4+ {[%emt 0:00:46]} e5 {[%emt 0:00:58]} 32. Nxe5 {[%emt 0:02:23]} Qd5 {[%emt 0:00:12]} 33. Nc6+ {[%emt 0:03:47]} Qxd4 {[%emt 0:00:59]} 34. Nxd4 {[%emt 0:00:03]} Rc3 {[%emt 0:00:31]} 35. Rd1 {[%emt 0:00:58]} Ra3 {[%emt 0:00:29]} 36. Rd2 {[%emt 0:01:11]} a6 {[%emt 0:00:29]} 37. f3 {[%emt 0:00:41]} Bd5 {[%emt 0:00:10]} 38. Nb3 {[%emt 0:00:07]} 1/2-1/2

[Event "WYCC 2018 O14"]
[Site "Halkidiki"]
[Date "2018.10.24"]
[Round "6"]
[White "Vitenberg, Noam Aviv"]
[Black "Popov, Konstantin"]
[Result "1-0"]
[ECO "A05"]
[WhiteElo "2175"]
[BlackElo "2304"]
[Annotator "NA"]
[PlyCount "133"]
[EventDate "2018.10.20"]
[EventType "swiss"]
[EventCountry "GRE"]
[SourceTitle "playchess.com"]
[Source "ChessBase"]
[SourceQuality "1"]
[TimeControl "40/5400+30:1800+30"]

1. Nf3 {[%emt 0:00:00]} Nf6 {[%emt 0:00:00]} 2. c4 {[%emt 0:00:00]} g6 {[%emt 0:00:09]} 3. Nc3 {[%emt 0:00:00]} d5 {[%emt 0:01:19]} 4. cxd5 {[%emt 0:00:00]} Nxd5 {[%emt 0:00:05]} 5. e4 {[%emt 0:00:00]} Nxc3 {[%emt 0:00:48]} 6. dxc3 {[%emt 0:00:00]} Qxd1+ {[%emt 0:00:10]} 7. Kxd1 {[%emt 0:00:00]} Nd7 {[%emt 0:00:42]} 8. Bf4 {[%emt 0:02:27]} c6 {[%emt 0:00:30]} 9. Kc2 {[%emt 0:00:21]} f6 {[%emt 0:01:50] LiveBook: 34 Games A16: English Opening: 1...Nf6 with ...d5} (9... Nc5 10. Nd2 Bg7 11. Be3 Na4 12. Bc4 Nb6 13. Bb3 Nd7 14. a4 O-O 15. h4 h5 16. a5 Ne5 17. f3 {½-½ (48) So,W (2812)-Mamedyarov,S (2800) Paris 2017}) 10. e5 {[%emt 0:29:43]} g5 {[%emt 0:04:43]} 11. Bg3 {[%emt 0:02:04]} g4 {[%emt 0:01:18]} 12. Nd2 {[%emt 0:02:40]} Nxe5 {[%emt 0:03:18]} 13. Bxe5 {[%emt 0:00:40]} fxe5 {[%emt 0:00:09]} 14. Re1 $146 {[%emt 0:00:55]} ({Predecessor:} 14. Bd3 Be6 15. Rhe1 Bg7 16. Re2 O-O-O 17. Ne4 {½-½ (34) Dudukin,I (2333)-Yandemirov,V (2469) Samara 2003}) 14... Bg7 {[%emt 0:00:13]} 15. Bd3 {[%emt 0:02:12]} Be6 {[%emt 0:07:05]} 16. f4 {[%emt 0:21:30]} O-O {[%emt 0:06:01]} 17. Rhf1 {[%emt 0:08:57]} Bd5 {[%emt 0:09:52]} ({And not} 17... Bxa2 18. b3 $16) 18. g3 {[%emt 0:08:18]} Rae8 {[%emt 0:14:39]} 19. c4 {[%emt 0:04:01]} Bg2 {[%emt 0:10:09]} 20. Rf2 {[%emt 0:03:57]} Bh3 {[%emt 0:00:05]} 21. f5 {[%emt 0:01:24]} e6 {[%emt 0:01:20]} 22. Ne4 {[%emt 0:01:19]} Rxf5 {[%emt 0:26:41]} 23. Rxf5 {[%emt 0:01:17]} exf5 {[%emt 0:00:06]} 24. Nd6 {[%emt 0:00:14]} Re6 {[%emt 0:00:33]} 25. c5 {[%emt 0:06:04]} Bg2 {[%emt 0:02:39]} 26. Bxf5 {[%emt 0:00:40]} Rh6 {[%emt 0:01:10]} 27. Bxg4 {[%emt 0:00:17]} Bd5 {[%emt 0:00:19]} 28. h3 {[%emt 0:00:50]} b6 {[%emt 0:03:45]} 29. Nf5 {[%emt 0:00:15]} Rf6 {[%emt 0:00:35]} 30. cxb6 {[%emt 0:00:28]} axb6 {[%emt 0:00:07]} 31. Rxe5 {[%emt 0:02:02]} Bf8 {[%emt 0:04:14]} 32. b3 {[%emt 0:01:27]} h5 {[%emt 0:00:36]} 33. Be2 {[%emt 0:01:27]} Bg2 {[%emt 0:00:40]} 34. Bc4+ {[%emt 0:00:48]} Kh7 {[%emt 0:00:30]} 35. Ne3 {[%emt 0:00:21]} Bf3 {[%emt 0:00:18]} 36. Bd3+ {[%emt 0:00:28]} Kg8 {[%emt 0:00:34]} 37. Rg5+ {[%emt 0:00:32]} Kf7 {[%emt 0:00:12]} 38. Bc4+ {[%emt 0:00:40]} Ke8 {[%emt 0:00:08]} 39. Re5+ {[%emt 0:00:33]} Kd7 {[%emt 0:00:13]} 40. Bd3 {[%emt 0:00:00]} Bd6 {[%emt 0:00:00]} 41. Rg5 {[%emt 0:02:53]} Bc5 {[%emt 0:03:11]} 42. Nf5 {[%emt 0:08:49]} Bf2 {[%emt 0:07:02]} 43. Rg7+ {[%emt 0:05:06]} Kd8 {[%emt 0:00:22]} 44. g4 {[%emt 0:01:14]} Re6 {[%emt 0:03:23]} 45. Rg8+ {[%emt 0:01:29]} Re8 {[%emt 0:01:12]} 46. Rxe8+ {[%emt 0:01:18]} Kxe8 {[%emt 0:00:01]} 47. Ng7+ {[%emt 0:02:58]} Kf7 {[%emt 0:00:08]} 48. Nxh5 {[%emt 0:00:08]} Be3 {[%emt 0:00:22]} 49. Ng3 {[%emt 0:00:20]} Bg2 {[%emt 0:00:21]} 50. Bf1 {[%emt 0:03:30]} Bf3 {[%emt 0:00:12]} 51. Nf5 {[%emt 0:00:31]} Bf4 {[%emt 0:00:41]} 52. Kd3 {[%emt 0:00:48]} Kf6 {[%emt 0:01:16]} 53. Be2 {[%emt 0:00:42]} Bd5 {[%emt 0:00:34]} 54. Ne3 {[%emt 0:00:30]} Bf7 {[%emt 0:00:36]} 55. Bf3 {[%emt 0:00:14]} Be8 {[%emt 0:00:27]} 56. Be4 {[%emt 0:01:48]} Kg5 {[%emt 0:00:37]} 57. Ng2 {[%emt 0:00:27]} Be5 {[%emt 0:00:35]} 58. Ke3 {[%emt 0:00:25]} c5 {[%emt 0:00:22]} 59. Kf3 {[%emt 0:00:10]} b5 {[%emt 0:00:08]} 60. h4+ {[%emt 0:00:17]} Kh6 {[%emt 0:00:07]} 61. Ne3 {[%emt 0:00:23]} Bd7 $18 {[%emt 0:01:14]} (61... Kg7 {war nötig.} 62. Nf5+ Kf8) 62. Nd5 {[%emt 0:03:07]} c4 {[%emt 0:00:56]} 63. g5+ {[%emt 0:00:30]} Kg7 {[%emt 0:02:54]} 64. h5 {[%emt 0:00:10]} c3 {[%emt 0:00:34]} 65. h6+ {[%emt 0:00:15]} Kh8 {[%emt 0:02:13]} 66. g6 {[%emt 0:00:16]} Bc6 {[%emt 0:00:22]} 67. g7+ {[%emt 0:00:18]} 1-0

[Event "WYCC 2018 O14"]
[Site "Halkidiki"]
[Date "2018.10.24"]
[Round "6"]
[White "Juhasz, Agoston"]
[Black "Dardha, Daniel"]
[Result "1-0"]
[ECO "B30"]
[WhiteElo "2174"]
[BlackElo "2316"]
[Annotator "NA"]
[PlyCount "85"]
[EventDate "2018.10.20"]
[EventType "swiss"]
[EventCountry "GRE"]
[SourceTitle "playchess.com"]
[Source "ChessBase"]
[SourceQuality "1"]
[TimeControl "40/5400+30:1800+30"]

1. e4 {[%emt 0:00:00]} c5 {[%emt 0:00:00]} 2. Nf3 {[%emt 0:00:00]} Nc6 {[%emt 0:00:28]} 3. Bb5 {[%emt 0:00:00]} e6 {[%emt 0:00:04]} 4. Bxc6 {[%emt 0:06:28]} bxc6 {[%emt 0:00:07]} 5. b3 {[%emt 0:00:46]} d6 {[%emt 0:15:03]} 6. e5 {[%emt 0:08:22] B30: Sizilianisch (Rossolimo-Variante)} dxe5 {[%emt 0:13:10]} 7. Nxe5 {[%emt 0:07:05]} Qg5 {[%emt 0:16:23]} 8. Ng4 {[%emt 0:05:10]} e5 $146 {[%emt 0:09:41]} ({Vorgänger:} 8... f5 9. Qf3 {½-½ (9) Kovchan,A (2585)-Moiseenko,A (2701) Lvov 2014}) 9. Qf3 {[%emt 0:04:29]} Ne7 {[%emt 0:08:28]} 10. Ne3 {[%emt 0:01:53]} f5 {[%emt 0:04:38]} 11. O-O {[%emt 0:11:47]} e4 {[%emt 0:04:46]} 12. Qg3 {[%emt 0:18:26]} Qf6 {[%emt 0:04:49]} 13. Nc4 {[%emt 0:01:15]} Ba6 {[%emt 0:02:17]} 14. Bb2 {[%emt 0:00:39]} Qe6 {[%emt 0:00:34]} 15. d3 {[%emt 0:06:46]} Bxc4 {[%emt 0:04:33]} 16. bxc4 {[%emt 0:00:17]} O-O-O {[%emt 0:04:28]} 17. dxe4 {[%emt 0:03:03]} fxe4 {[%emt 0:03:41]} 18. Qa3 {[%emt 0:00:31]} Kb7 {[%emt 0:01:06]} 19. Nc3 {[%emt 0:00:24]} Nc8 $18 {[%emt 0:02:51]} 20. Rab1 {[%emt 0:01:13]} Nb6 {[%emt 0:00:30]} 21. Na4 {[%emt 0:02:09]} Qxc4 {[%emt 0:00:49]} 22. Bc3 {[%emt 0:00:15]} Qa6 {[%emt 0:01:35]} 23. Bxg7 {[%emt 0:01:27]} Kc7 {[%emt 0:00:41]} 24. Bxh8 {[%emt 0:02:14]} Qxa4 {[%emt 0:00:07]} 25. Be5+ {[%emt 0:01:16]} Bd6 {[%emt 0:00:15]} 26. Bxd6+ {[%emt 0:04:22]} Rxd6 {[%emt 0:00:05]} 27. Qxa4 {[%emt 0:01:42]} Nxa4 {[%emt 0:00:01]} 28. Rfd1 {[%emt 0:00:20]} Rd4 {[%emt 0:01:55]} 29. Rxd4 {[%emt 0:05:49]} cxd4 {[%emt 0:00:01]} 30. Kf1 {[%emt 0:00:06]} c5 {[%emt 0:00:52]} 31. Ke1 {[%emt 0:00:54]} Kc6 {[%emt 0:00:51]} 32. g4 {[%emt 0:00:40]} a5 {[%emt 0:00:31]} 33. g5 {[%emt 0:02:36]} c4 {[%emt 0:00:23]} 34. h4 {[%emt 0:00:57]} c3 {[%emt 0:00:45]} 35. h5 {[%emt 0:01:13]} Nb2 {[%emt 0:00:26]} 36. g6 {[%emt 0:00:28]} hxg6 {[%emt 0:00:19]} 37. hxg6 {[%emt 0:00:05]} d3 {[%emt 0:00:04]} 38. g7 {[%emt 0:00:32]} dxc2 {[%emt 0:00:40]} 39. Ra1 {[%emt 0:00:10]} Nd3+ {[%emt 0:00:28]} 40. Kf1 {[%emt 0:00:00]} c1=Q+ {[%emt 0:00:00]} 41. Rxc1 {[%emt 0:00:21]} Nxc1 {[%emt 0:00:15]} 42. g8=Q {[%emt 0:00:10]} Kc5 {[%emt 0:00:07]} 43. Qg5+ {[%emt 0:00:27] Kd5} 1-0

[Event "WYCC 2018 O14"]
[Site "Halkidiki"]
[Date "2018.10.24"]
[Round "6"]
[White "Lopez Varela, Pablo"]
[Black "Tadic, Stefan"]
[Result "1/2-1/2"]
[ECO "B03"]
[WhiteElo "2172"]
[BlackElo "2295"]
[Annotator "NA"]
[PlyCount "74"]
[EventDate "2018.10.20"]
[EventType "swiss"]
[EventCountry "GRE"]
[SourceTitle "playchess.com"]
[Source "ChessBase"]
[SourceQuality "1"]
[TimeControl "40/5400+30:1800+30"]

1. e4 {[%emt 0:00:00]} Nf6 {[%emt 0:00:00]} 2. e5 {[%emt 0:00:00]} Nd5 {[%emt 0:00:09]} 3. d4 {[%emt 0:00:00]} d6 {[%emt 0:00:41]} 4. c4 {[%emt 0:00:00]} Nb6 {[%emt 0:00:05]} 5. exd6 {[%emt 0:00:00]} exd6 {[%emt 0:01:12]} 6. Bd3 {[%emt 0:01:12]} Be7 {[%emt 0:01:30]} 7. Nc3 {[%emt 0:00:31]} Nc6 {[%emt 0:01:15]} 8. Nge2 {[%emt 0:01:08]} O-O {[%emt 0:01:24]} 9. b3 {[%emt 0:01:44] B03: Alekhine's Defence: Four Pawns Attack} (9. O-O Bf6 10. b3 Re8 11. Be3 Bg4 12. Qd2 Bxe2 13. Nxe2 d5 14. c5 Nd7 15. b4 a6 16. Rae1 Nf8 17. Bb1 {1-0 (37) Gelashvili,T (2563)-Berkes,F (2654) Minsk 2017 CBM 179 [Mekhitarian,K]}) 9... a5 {[%emt 0:00:36]} 10. O-O {[%emt 0:10:42]} Bf6 {[%emt 0:03:24]} 11. Be3 {[%emt 0:00:17]} Nb4 $146 {[%emt 0:04:14]} ({Predecessor:} 11... a4 12. Qb1 axb3 13. axb3 Rxa1 14. Qxa1 Re8 15. Qb1 {0-1 (34) Olsarova,K (2275)-Khaetsky,R (2373) Pardubice 2017}) 12. a3 {[%emt 0:08:58]} (12. Be4 $14) 12... Nxd3 {[%emt 0:01:28]} 13. Qxd3 {[%emt 0:02:57]} a4 {[%emt 0:01:51]} 14. b4 {[%emt 0:00:13]} d5 {[%emt 0:03:10]} 15. c5 {[%emt 0:07:12]} Nc4 {[%emt 0:00:18]} 16. Nxd5 {[%emt 0:03:23]} (16. Rfe1 $15) 16... Qxd5 {[%emt 0:06:40]} 17. Nf4 {[%emt 0:01:56]} Ne5 {[%emt 0:36:44]} 18. dxe5 {[%emt 0:24:57]} Qxe5 {[%emt 0:00:26]} 19. Nd5 {[%emt 0:02:00]} Rd8 {[%emt 0:08:12]} 20. Nxf6+ {[%emt 0:00:12]} Qxf6 {[%emt 0:00:06]} 21. Qe4 {[%emt 0:02:58]} c6 {[%emt 0:02:07]} 22. Rad1 {[%emt 0:01:24]} Be6 {[%emt 0:05:21]} 23. Qf4 {[%emt 0:05:56]} Qxf4 {[%emt 0:05:49]} 24. Bxf4 {[%emt 0:00:06]} Bb3 {[%emt 0:00:16]} 25. Rxd8+ {[%emt 0:01:47]} Rxd8 {[%emt 0:00:06]} 26. Re1 {[%emt 0:00:36]} Rd1 {[%emt 0:03:11]} 27. Rxd1 {[%emt 0:00:06]} Bxd1 {[%emt 0:00:03]} 28. Kf1 {[%emt 0:00:08]} f5 {[%emt 0:00:32]} 29. Ke1 {[%emt 0:00:07]} Bb3 {[%emt 0:00:03]} 30. Kd2 {[%emt 0:00:24]} Kf7 {[%emt 0:00:15]} 31. Ke3 {[%emt 0:00:23]} Ke6 {[%emt 0:00:08]} 32. Kd4 {[%emt 0:00:06]} g6 $11 {[%emt 0:00:14]} 33. h4 {[%emt 0:00:28]} Bd5 {[%emt 0:00:06]} 34. g3 {[%emt 0:00:04]} Bb3 {[%emt 0:00:06]} 35. Bg5 {[%emt 0:00:23]} Bd5 {[%emt 0:00:12]} 36. Bf4 {[%emt 0:00:05]} Bb3 {[%emt 0:00:03]} 37. Bg5 {[%emt 0:00:09]} Bd5 {[%emt 0:00:08] Ke4 Ke5+} 1/2-1/2

[Event "WYCC 2018 O14"]
[Site "Halkidiki"]
[Date "2018.10.24"]
[Round "6"]
[White "Turgut, Aydin"]
[Black "Gines Esteo, Pedro Antonio"]
[Result "0-1"]
[ECO "B13"]
[WhiteElo "2156"]
[BlackElo "2288"]
[Annotator "NA"]
[PlyCount "128"]
[EventDate "2018.10.20"]
[EventType "swiss"]
[EventCountry "GRE"]
[SourceTitle "playchess.com"]
[Source "ChessBase"]
[SourceQuality "1"]
[TimeControl "40/5400+30:1800+30"]

1. e4 {[%emt 0:00:00]} c6 {[%emt 0:00:00]} 2. d4 {[%emt 0:00:00]} d5 {[%emt 0:00:00]} 3. exd5 {[%emt 0:00:03]} cxd5 {[%emt 0:00:00]} 4. Bd3 {[%emt 0:00:11]} Nc6 {[%emt 0:00:00]} 5. c3 {[%emt 0:00:06]} Nf6 {[%emt 0:00:33]} 6. h3 {[%emt 0:00:14]} g6 {[%emt 0:01:27]} 7. Nf3 {[%emt 0:00:19]} Bf5 {[%emt 0:02:06]} 8. Bxf5 {[%emt 0:00:59]} gxf5 {[%emt 0:00:06]} 9. Bf4 {[%emt 0:00:15] B13: Caro-Kann: Exchange Variation and Panov-Botvinnik Attack} Rg8 {[%emt 0:02:26]} (9... e6 10. Ne5 Rg8 11. O-O Bd6 12. Nd2 Qc7 13. Re1 O-O-O 14. Rc1 Bxe5 15. Rxe5 Qd7 16. Re1 Rg6 {0-1 (46) Malakhov,V (2686)-Esipenko,A (2564) Riadh 2017}) 10. Nbd2 {[%emt 0:11:21]} Rxg2 $146 {[%emt 0:09:32]} ({Predecessor:} 10... Nh5 11. Be5 e6 12. g4 f6 13. gxh5 fxe5 14. dxe5 Qc7 15. Qe2 Bg7 16. O-O-O O-O-O {½-½ (49) Tornai,I (2175)-Gledura,B (2180) Hungary 2011}) 11. Nh4 {[%emt 0:08:21]} Rg8 {[%emt 0:01:33]} 12. Nxf5 {[%emt 0:00:52]} e6 {[%emt 0:03:45]} 13. Qe2 {[%emt 0:10:03]} Qd7 {[%emt 0:08:20]} 14. Ng3 {[%emt 0:10:59]} O-O-O {[%emt 0:01:49]} 15. Nf3 {[%emt 0:01:32]} Bd6 {[%emt 0:05:27]} 16. Bxd6 {[%emt 0:19:24]} Qxd6 {[%emt 0:00:07]} 17. Ne5 {[%emt 0:00:11]} Qc7 {[%emt 0:08:27]} 18. Nxc6 {[%emt 0:02:21]} Qxc6 {[%emt 0:01:32]} 19. O-O-O {[%emt 0:00:52]} Rg6 {[%emt 0:05:48]} 20. Qf3 {[%emt 0:04:05]} Qc7 {[%emt 0:04:58]} 21. h4 {[%emt 0:08:50]} Ng4 {[%emt 0:04:23]} 22. Nh5 {[%emt 0:07:28]} Nh6 {[%emt 0:11:21]} 23. Kb1 {[%emt 0:06:56]} Kb8 {[%emt 0:05:39]} 24. Rde1 {[%emt 0:00:40]} Nf5 {[%emt 0:07:41]} 25. Nf4 {[%emt 0:01:11]} Rgg8 {[%emt 0:00:29]} 26. Nh5 {[%emt 0:00:21]} h6 {[%emt 0:01:26]} 27. Nf6 {[%emt 0:01:19]} Rg6 {[%emt 0:01:21]} 28. Ng4 {[%emt 0:01:03]} Rdg8 {[%emt 0:00:12]} 29. Ne5 {[%emt 0:00:07]} Rg2 {[%emt 0:00:17]} 30. Nd3 {[%emt 0:01:28]} Nd6 {[%emt 0:02:17]} 31. Nf4 {[%emt 0:00:05]} R2g4 {[%emt 0:00:38]} 32. Nh5 {[%emt 0:01:04]} Ne4 {[%emt 0:00:28]} 33. Qe3 {[%emt 0:01:42]} Rg2 {[%emt 0:07:08]} 34. Ref1 {[%emt 0:00:01]} R2g6 {[%emt 0:01:00]} 35. f3 {[%emt 0:01:56]} Nd6 {[%emt 0:00:57]} 36. Qf4 {[%emt 0:00:55]} Nc4 {[%emt 0:03:29]} 37. Qxc7+ {[%emt 0:00:04]} Kxc7 {[%emt 0:00:05]} 38. Rh2 {[%emt 0:00:54]} Rg2 {[%emt 0:00:35]} 39. Rf2 {[%emt 0:00:14]} Rxh2 {[%emt 0:01:19]} 40. Rxh2 {[%emt 0:00:00]} Rg1+ {[%emt 0:00:00]} 41. Kc2 {[%emt 0:03:03]} Rf1 {[%emt 0:02:13]} 42. f4 {[%emt 0:06:22]} Kd7 {[%emt 0:00:50]} 43. Re2 {[%emt 0:11:41]} Nd6 {[%emt 0:06:10]} 44. Nf6+ {[%emt 0:01:33]} Kd8 {[%emt 0:00:49]} 45. Nh5 {[%emt 0:05:56]} Ke7 {[%emt 0:00:43]} 46. Rg2 {[%emt 0:04:22]} Rh1 {[%emt 0:00:28]} 47. f5 {[%emt 0:01:29]} Nxf5 {[%emt 0:00:29]} 48. Ng3 {[%emt 0:00:32]} Ne3+ {[%emt 0:01:30]} 49. Kd3 {[%emt 0:00:05]} Nxg2 {[%emt 0:00:07]} 50. Nxh1 {[%emt 0:00:03]} Nxh4 {[%emt 0:00:06]} 51. Ng3 {[%emt 0:00:27]} Ng6 {[%emt 0:01:11]} 52. Ke3 {[%emt 0:00:37]} Kf6 {[%emt 0:00:35]} 53. c4 {[%emt 0:00:14]} dxc4 {[%emt 0:01:16]} 54. Ne4+ {[%emt 0:00:10]} Ke7 {[%emt 0:00:12]} 55. a4 {[%emt 0:01:47]} Nh4 {[%emt 0:00:05]} 56. Kf4 $19 {[%emt 0:00:32]} f6 {[%emt 0:01:36]} 57. Nd2 {[%emt 0:00:28]} Nf5 {[%emt 0:00:20]} 58. d5 {[%emt 0:00:16]} Nd6 {[%emt 0:00:07]} 59. dxe6 {[%emt 0:00:05]} Kxe6 {[%emt 0:00:12]} 60. Nf3 {[%emt 0:00:18]} Kd5 {[%emt 0:00:16]} 61. Ke3 {[%emt 0:00:16]} h5 {[%emt 0:00:57]} 62. Ne1 {[%emt 0:00:25]} h4 {[%emt 0:01:14]} 63. Ng2 {[%emt 0:00:09]} Nf5+ {[%emt 0:00:06]} 64. Kf4 {[%emt 0:00:14]} h3 {[%emt 0:00:07] Ke5+ Kxe5} 0-1

[Event "WYCC 2018 O14"]
[Site "Halkidiki"]
[Date "2018.10.24"]
[Round "6"]
[White "Patrelakis, Evaggelos"]
[Black "Vujovic, Savo"]
[Result "1/2-1/2"]
[ECO "B66"]
[WhiteElo "2146"]
[BlackElo "1781"]
[Annotator "NA"]
[PlyCount "82"]
[EventDate "2018.10.20"]
[EventType "swiss"]
[EventCountry "GRE"]
[SourceTitle "playchess.com"]
[Source "ChessBase"]
[SourceQuality "1"]
[TimeControl "40/5400+30:1800+30"]

1. e4 {[%emt 0:00:00]} c5 {[%emt 0:00:00]} 2. Nf3 {[%emt 0:00:00]} Nc6 {[%emt 0:00:00]} 3. d4 {[%emt 0:00:00]} cxd4 {[%emt 0:00:00]} 4. Nxd4 {[%emt 0:00:00]} Nf6 {[%emt 0:00:02]} 5. Nc3 {[%emt 0:00:04]} d6 {[%emt 0:00:04]} 6. Bg5 {[%emt 0:00:05]} e6 {[%emt 0:00:09]} 7. Qd2 {[%emt 0:00:05]} a6 {[%emt 0:00:07]} 8. O-O-O {[%emt 0:00:10]} h6 {[%emt 0:00:06]} 9. Be3 {[%emt 0:00:05]} Bd7 {[%emt 0:00:08]} 10. f3 {[%emt 0:00:30]} Qc7 {[%emt 0:01:24]} 11. Kb1 {[%emt 0:02:03]} Be7 {[%emt 0:05:37]} 12. g4 {[%emt 0:01:43]} Ne5 {[%emt 0:06:26]} 13. h4 {[%emt 0:07:52]} b5 {[%emt 0:17:47]} 14. Bd3 {[%emt 0:07:04]} h5 {[%emt 0:15:40]} 15. g5 {[%emt 0:07:50]} Nh7 {[%emt 0:00:49]} 16. f4 {[%emt 0:00:43]} Ng4 {[%emt 0:01:27]} 17. f5 {[%emt 0:10:51]} b4 {[%emt 0:07:56]} 18. Nce2 {[%emt 0:06:12]} e5 {[%emt 0:05:39]} 19. Nf3 {[%emt 0:00:29]} Bb5 {[%emt 0:06:24]} 20. g6 {[%emt 0:10:38]} fxg6 {[%emt 0:09:52]} 21. fxg6 {[%emt 0:00:45]} Nxe3 {[%emt 0:02:34]} 22. Qxe3 {[%emt 0:00:19]} Nf6 {[%emt 0:00:17]} 23. Ng5 {[%emt 0:05:30]} Ng4 {[%emt 0:02:31]} 24. Ne6 {[%emt 0:16:37]} Qxc2+ {[%emt 0:04:43]} 25. Bxc2 {[%emt 0:01:08]} Nxe3 {[%emt 0:00:14]} 26. Nc7+ {[%emt 0:06:59]} Kd8 {[%emt 0:04:23]} 27. Nxa8 {[%emt 0:02:47]} Nxd1 {[%emt 0:00:17]} 28. Ng3 {[%emt 0:01:15]} Ne3 {[%emt 0:01:55]} 29. Nb6 {[%emt 0:02:30]} Bc6 {[%emt 0:02:22]} 30. Bd3 {[%emt 0:04:26]} Kc7 {[%emt 0:01:48]} 31. Nc4 {[%emt 0:00:11]} Nxc4 {[%emt 0:01:25]} 32. Bxc4 {[%emt 0:00:02]} Be8 {[%emt 0:00:14]} 33. Rc1 {[%emt 0:05:10]} Kd7 {[%emt 0:01:44]} 34. Bf1 {[%emt 0:00:15]} Kd8 {[%emt 0:01:19]} 35. Bxa6 {[%emt 0:01:31]} Rf8 {[%emt 0:01:00]} 36. Nf5 {[%emt 0:01:37]} Bxg6 {[%emt 0:00:50]} 37. Nxg7 {[%emt 0:00:23]} Bxe4+ {[%emt 0:00:20]} 38. Ka1 {[%emt 0:00:00]} Bd5 {[%emt 0:00:41]} 39. Nxh5 {[%emt 0:01:08]} Bxh4 {[%emt 0:00:37]} 40. Rc8+ {[%emt 0:00:00]} Ke7 {[%emt 0:00:00]} 41. Rc7+ {[%emt 0:01:46]} Kd8 {[%emt 0:04:20]} 1/2-1/2

[Event "WYCC 2018 O14"]
[Site "Halkidiki"]
[Date "2018.10.24"]
[Round "6"]
[White "Galkin, Gleb"]
[Black "Ibarra, Juan Martin"]
[Result "1-0"]
[ECO "A46"]
[WhiteElo "2134"]
[BlackElo "1899"]
[Annotator "NA"]
[PlyCount "73"]
[EventDate "2018.10.20"]
[EventType "swiss"]
[EventCountry "GRE"]
[SourceTitle "playchess.com"]
[Source "ChessBase"]
[SourceQuality "1"]
[TimeControl "40/5400+30:1800+30"]

1. d4 {[%emt 0:00:00]} Nf6 {[%emt 0:00:00]} 2. Nf3 {[%emt 0:00:00]} e6 {[%emt 0:00:00]} 3. c4 {[%emt 0:00:00]} d5 {[%emt 0:00:00]} 4. e3 {[%emt 0:00:00]} Be7 {[%emt 0:02:38]} 5. b3 {[%emt 0:00:01]} O-O {[%emt 0:05:45] D30: Queen's Gambit Declined: Systems without Nc3} 6. Bd3 {[%emt 0:00:12]} c5 {[%emt 0:02:23]} 7. O-O {[%emt 0:04:54] LiveBook: 65 Games} Nc6 {[%emt 0:02:33]} 8. Bb2 {[%emt 0:03:45]} Nb4 {[%emt 0:05:30]} 9. Be2 {[%emt 0:02:23]} b6 {[%emt 0:01:59]} 10. Nc3 {[%emt 0:11:41]} Bb7 {[%emt 0:03:36]} 11. Ne5 {[%emt 0:04:59]} dxc4 $146 {[%emt 0:12:01]} ({Predecessor:} 11... Qb8 12. a3 Nc6 13. Nxc6 Bxc6 14. cxd5 exd5 15. Bf3 Qb7 16. g3 {½-½ (50) San Segundo Carrillo,P (2495)-Granda Zuniga,J (2625) Ponferrada 1997}) 12. bxc4 {[%emt 0:00:51]} Qc8 {[%emt 0:06:25]} 13. a3 {[%emt 0:08:45]} Nc6 {[%emt 0:04:36]} 14. Nxc6 {[%emt 0:00:25]} Bxc6 {[%emt 0:01:55]} 15. d5 {[%emt 0:00:57]} Rd8 {[%emt 0:02:41]} 16. e4 {[%emt 0:01:07]} e5 {[%emt 0:02:36]} 17. Qc2 {[%emt 0:01:04]} Bd7 {[%emt 0:01:50]} 18. f4 {[%emt 0:01:49]} exf4 {[%emt 0:02:47]} 19. e5 {[%emt 0:00:30]} Ng4 {[%emt 0:02:15]} 20. e6 {[%emt 0:07:50]} fxe6 {[%emt 0:04:22]} 21. Bxg4 {[%emt 0:00:08]} e5 {[%emt 0:00:04]} 22. Bf3 {[%emt 0:01:10]} Rb8 {[%emt 0:01:09]} 23. Ne4 {[%emt 0:01:09]} Bf6 {[%emt 0:00:14]} 24. Nxf6+ {[%emt 0:01:51]} gxf6 {[%emt 0:00:05]} 25. Be4 {[%emt 0:00:47]} Qc7 {[%emt 0:00:57]} 26. Bxh7+ {[%emt 0:00:36]} Kh8 $18 {[%emt 0:00:04]} 27. Rxf4 {[%emt 0:04:25]} Ba4 {[%emt 0:00:07]} 28. Qxa4 {[%emt 0:01:49]} exf4 {[%emt 0:00:14]} 29. Bf5 {[%emt 0:02:34]} Qe7 {[%emt 0:02:33]} 30. Qc2 {[%emt 0:02:29]} Qe3+ {[%emt 0:00:24]} 31. Kf1 {[%emt 0:01:01]} f3 {[%emt 0:04:01]} 32. Bxf6+ {[%emt 0:01:09]} Kg8 {[%emt 0:00:29]} 33. Re1 {[%emt 0:01:27]} Qh6 {[%emt 0:00:06]} 34. Be6+ {[%emt 0:00:35]} Kf8 {[%emt 0:00:14]} 35. Qf5 {[%emt 0:00:41]} fxg2+ {[%emt 0:00:30]} 36. Kg1 {[%emt 0:00:05]} Qd2 {[%emt 0:00:39]} 37. Bc3+ {[%emt 0:00:38]} 1-0